fUSD/lending_fUSD_20240104
["ID","MTS","AMOUNT","RATE_DAILY","PERIOD"]
[310135640,1704381052009,-500.0,0.0003315,2]
[310135641,1704381052021,-500.0,0.0003315,2]
[310135642,1704381052033,-500.0,0.0003315,2]
[310135643,1704381052044,-627.09467409,0.0003315,2]
[310135644,1704381052055,-869.62,0.0003315,2]
[310135645,1704381052102,-500.0,0.0003315,2]
[310135646,1704381052113,-500.0,0.0003315,2]
[310135647,1704381052123,-587.36,0.0003315,2]
[310135648,1704381052134,-500.0,0.0003315,2]
[310135649,1704381052145,-500.0,0.0003315,2]
[310135650,1704381052157,-500.0,0.0003315,2]
[310135651,1704381052168,-1285.64,0.0003315,2]
[310135652,1704381052179,-500.0,0.0003315,2]
[310135653,1704381052191,-1357.55,0.0003315,2]
[310135654,1704381052203,-500.0,0.0003315,2]
[310135655,1704381052214,-1169.7,0.0003315,2]
[310135656,1704381052225,-500.0,0.0003315,2]
[310135657,1704381052236,-500.0,0.0003315,2]
[310135658,1704381052249,-500.0,0.0003315,2]
[310135659,1704381052260,-500.0,0.0003315,2]
[310135660,1704381052274,-500.0,0.0003315,2]
[310135661,1704381052564,-500.0,0.0003315,2]
[310135662,1704381052575,-707.03,0.0003315,2]
[310135663,1704381052585,-500.0,0.0003315,2]
[310135664,1704381052595,-635.54,0.0003315,2]
[310135665,1704381052607,-586.38,0.0003315,2]
[310135666,1704381052618,-500.0,0.0003315,2]
[310135667,1704381052629,-539.79,0.0003315,2]
[310135668,1704381052639,-500.0,0.0003315,2]
[310135669,1704381052649,-500.0,0.0003315,2]
[310135670,1704381052658,-500.0,0.0003315,2]
[310135671,1704381052669,-500.0,0.0003315,2]
[310135672,1704381052683,-500.0,0.0003315,2]
[310135673,1704381052692,-500.0,0.0003315,2]
[310135674,1704381052703,-500.0,0.0003315,2]
[310135675,1704381052713,-500.0,0.0003315,2]
[310135676,1704381052723,-500.0,0.0003315,2]
[310135677,1704381052732,-500.0,0.0003315,2]
[310135678,1704381052742,-500.0,0.0003315,2]
[310135679,1704381052753,-963.75,0.0003315,2]
[310135680,1704381052763,-500.07,0.0003315,2]
[310135681,1704381052772,-500.0,0.0003315,2]
[310135682,1704381052782,-606.02,0.0003315,2]
[310135683,1704381052791,-500.0,0.0003315,2]
[310135684,1704381052802,-500.0,0.0003315,2]
[310135685,1704381052811,-500.0,0.0003315,2]
[310135686,1704381052821,-3100.13,0.0003315,2]
[310135687,1704381052832,-500.0,0.0003315,2]
[310135688,1704381052842,-500.0,0.0003315,2]
[310135689,1704381052853,-500.0,0.0003315,2]
[310135690,1704381052862,-500.0,0.0003315,2]
[310135691,1704381052872,-645.41784646,0.0003315,2]
[310135692,1704381052882,-502.56296355,0.0003315,2]
[310135693,1704381052893,-500.0,0.0003315,2]
[310135694,1704381052902,-500.0,0.0003315,2]
[310135695,1704381052912,-233.32282438,0.0003315,2]
[310135696,1704381052922,-500.0,0.0003315,2]
[310135697,1704381052932,-500.0,0.0003315,2]
[310135698,1704381052943,-500.0,0.0003315,2]
[310135699,1704381052953,-500.0,0.0003315,2]
[310135700,1704381052963,-500.0,0.0003315,2]
[310135701,1704381052972,-500.0,0.0003315,2]
[310135702,1704381052986,-500.0,0.0003315,2]
[310135703,1704381052996,-500.0,0.0003315,2]
[310135704,1704381053005,-673.77,0.0003315,2]
[310135705,1704381053015,-1118.34,0.0003315,2]
[310135706,1704381053025,-1291.44,0.0003315,2]
[310135707,1704381053036,-823.53,0.0003315,2]
[310135708,1704381053046,-500.0,0.0003315,2]
[310135709,1704381053056,-500.0,0.0003315,2]
[310135710,1704381053066,-500.0,0.0003315,2]
[310135711,1704381053076,-500.0,0.0003315,2]
[310135712,1704381053087,-500.0,0.0003315,2]
[310135713,1704381053099,-1271.74,0.0003315,2]
[310135714,1704381053109,-500.0,0.0003315,2]
[310135715,1704381053121,-500.0,0.0003315,2]
[310135716,1704381053133,-500.0,0.0003315,2]
[310135717,1704381053144,-500.0,0.0003315,2]
[310135718,1704381053156,-3526.57,0.0003315,2]
[310135719,1704381053167,-500.0,0.0003315,2]
[310135720,1704381053178,-631.53,0.0003315,2]
[310135721,1704381053190,-591.31,0.0003315,2]
[310135722,1704381053200,-1380.91,0.0003315,2]
[310135723,1704381053210,-1537.7,0.0003315,2]
[310135724,1704381053221,-500.0,0.0003315,2]
[310135725,1704381053231,-500.0,0.0003315,2]
[310135726,1704381053241,-500.0,0.0003315,2]
[310135727,1704381053251,-500.0,0.0003315,2]
[310135728,1704381053262,-500.0,0.0003315,2]
[310135729,1704381053272,-500.0,0.0003315,2]
[310135730,1704381053282,-563.72,0.0003315,2]
[310135731,1704381053292,-500.0,0.0003315,2]
[310135732,1704381053301,-500.0,0.0003315,2]
[310135733,1704381053311,-500.0,0.0003315,2]
[310135734,1704381053321,-500.0,0.0003315,2]
[310135735,1704381053332,-1181.73,0.0003315,2]
[310135736,1704381053342,-500.0,0.0003315,2]
[310135737,1704381053352,-500.0,0.0003315,2]
[310135738,1704381053362,-585.96998412,0.0003315,2]
[310135739,1704381053372,-500.0,0.0003315,2]
[310135740,1704381053382,-500.0,0.0003315,2]
[310135741,1704381053391,-520.73064839,0.0003315,2]
[310135742,1704381053401,-180.17397978,0.0003315,2]
[310135743,1704381053411,-500.0,0.0003315,2]
[310135744,1704381053420,-500.0,0.0003315,2]
[310135745,1704381053430,-500.0,0.0003315,2]
[310135746,1704381053441,-500.0,0.0003315,2]
[310135747,1704381053450,-500.0,0.0003315,2]
[310135748,1704381053459,-1833.77,0.0003315,2]
[310135749,1704381053468,-500.0,0.0003315,2]
[310135750,1704381053478,-500.0,0.0003315,2]
[310135751,1704381053487,-500.0,0.0003315,2]
[310135752,1704381053498,-500.0,0.0003315,2]
[310135753,1704381053508,-627.58828577,0.0003315,2]
[310135754,1704381053518,-500.0,0.0003315,2]
[310135755,1704381053527,-627.51962564,0.0003315,2]
[310135756,1704381053537,-500.0,0.0003315,2]
[310135757,1704381053546,-1033.82,0.0003315,2]
[310135758,1704381053556,-1208.25,0.0003315,2]
[310135759,1704381053567,-500.0,0.0003315,2]
[310135760,1704381053576,-574.37,0.0003315,2]
[310135761,1704381053586,-500.0,0.0003315,2]
[310135762,1704381053596,-500.0,0.0003315,2]
[310135763,1704381053605,-490.82944906,0.0003315,2]
[310135764,1704381053615,-886.91,0.0003315,2]
[310135765,1704381053624,-500.0,0.0003315,2]
[310135766,1704381053634,-500.0,0.0003315,2]
[310135767,1704381053643,-668.42,0.0003315,2]
[310135768,1704381053653,-826.45,0.0003315,2]
[310135769,1704381053663,-1186.41,0.0003315,2]
[310135770,1704381053672,-750.85,0.0003315,2]
[310135771,1704381053681,-1079.57,0.0003315,2]
[310135772,1704381053693,-500.0,0.0003315,2]
[310135773,1704381053702,-1085.05,0.0003315,2]
[310135774,1704381053712,-500.0,0.0003315,2]
[310135775,1704381053722,-792.35,0.0003315,2]
[310135776,1704381053732,-210.45397018,0.0003315,2]
[310135777,1704381053742,-661.39,0.0003315,2]
[310135778,1704381053754,-645.04,0.0003315,2]
[310135779,1704381053764,-470.82918402,0.0003315,2]
[310135780,1704381053774,-500.0,0.0003315,2]
[310135781,1704381053783,-500.0,0.0003315,2]
[310135782,1704381053793,-771.55,0.0003315,2]
[310135783,1704381053805,-500.0,0.0003315,2]
[310135784,1704381053815,-500.0,0.0003315,2]
[310135785,1704381053824,-605.75,0.0003315,2]
[310135786,1704381053834,-500.0,0.0003315,2]
[310135787,1704381053843,-500.0,0.0003315,2]
[310135788,1704381053853,-500.0,0.0003315,2]
[310135789,1704381053862,-500.0,0.0003315,2]
[310135790,1704381053871,-500.0,0.0003315,2]
[310135791,1704381053881,-1394.76,0.0003315,2]
[310135792,1704381053891,-752.85,0.0003315,2]
[310135793,1704381053900,-500.0,0.0003315,2]
[310135794,1704381053910,-500.0,0.0003315,2]
[310135795,1704381053919,-500.0,0.0003315,2]
[310135796,1704381053928,-500.0,0.0003315,2]
[310135797,1704381053938,-500.0,0.0003315,2]
[310135798,1704381053947,-500.0,0.0003315,2]
[310135799,1704381053957,-500.0,0.0003315,2]
[310135800,1704381053967,-500.0,0.0003315,2]
[310135801,1704381053977,-500.0,0.0003315,2]
[310135802,1704381053987,-646.8,0.0003315,2]
[310135803,1704381053996,-500.0,0.0003315,2]
[310135804,1704381054006,-500.0,0.0003315,2]
[310135805,1704381054016,-500.0,0.0003315,2]
[310135806,1704381054031,-500.0,0.0003315,2]
[310135807,1704381054064,-500.0,0.0003315,2]
[310135808,1704381054074,-500.0,0.0003315,2]
[310135809,1704381054086,-698.57,0.0003315,2]
[310135810,1704381054098,-712.76,0.0003315,2]
[310135811,1704381054109,-500.0,0.0003315,2]
[310135812,1704381054119,-604.93,0.0003315,2]
[310135813,1704381054130,-525.99,0.0003315,2]
[310135814,1704381054139,-500.0,0.0003315,2]
[310135815,1704381054152,-500.0,0.0003315,2]
[310135816,1704381054163,-500.0,0.0003315,2]
[310135817,1704381054175,-500.0,0.0003315,2]
[310135818,1704381054185,-500.0,0.0003315,2]
[310135819,1704381054195,-500.0,0.0003315,2]
[310135820,1704381054204,-500.0,0.0003315,2]
[310135821,1704381054214,-638.80128525,0.0003315,2]
[310135822,1704381054226,-1149.84,0.0003315,2]
[310135823,1704381054236,-636.1460377,0.0003315,2]
[310135824,1704381054246,-326.67321299,0.0003315,2]
[310135825,1704381054257,-500.0,0.0003315,2]
[310135826,1704381054266,-620.95,0.0003315,2]
[310135827,1704381054276,-500.0,0.0003315,2]
[310135828,1704381054286,-500.0,0.0003315,2]
[310135829,1704381054295,-500.0,0.0003315,2]
[310135830,1704381054305,-1448.38,0.0003315,2]
[310135831,1704381054314,-500.0,0.0003315,2]
[310135832,1704381054324,-500.0,0.0003315,2]
[310135833,1704381054334,-592.41,0.0003315,2]
[310135834,1704381054344,-500.0,0.0003315,2]
[310135835,1704381054356,-500.0,0.0003315,2]
[310135836,1704381054366,-500.0,0.0003315,2]
[310135837,1704381054376,-864.54,0.0003315,2]
[310135838,1704381054386,-500.0,0.0003315,2]
[310135839,1704381054396,-500.0,0.0003315,2]
[310135840,1704381054406,-741.72,0.0003315,2]
[310135841,1704381054415,-500.0,0.0003315,2]
[310135842,1704381054425,-500.0,0.0003315,2]
[310135843,1704381054439,-757.58,0.0003315,2]
[310135844,1704381054449,-389.82011302,0.0003315,2]
[310135845,1704381054460,-500.0,0.0003315,2]
[310135846,1704381054471,-500.0,0.0003315,2]
[310135847,1704381054481,-500.0,0.0003315,2]
[310135848,1704381054491,-500.0,0.0003315,2]
[310135849,1704381054501,-506.58,0.0003315,2]
[310135850,1704381054512,-500.0,0.0003315,2]
[310135851,1704381054522,-500.0,0.0003315,2]
[310135852,1704381054533,-534.03,0.0003315,2]
[310135853,1704381054544,-500.0,0.0003315,2]
[310135854,1704381054555,-711.66,0.0003315,2]
[310135855,1704381054567,-500.0,0.0003315,2]
[310135856,1704381054578,-500.0,0.0003315,2]
[310135857,1704381054590,-500.0,0.0003315,2]
[310135858,1704381054602,-500.0,0.0003315,2]
[310135859,1704381054614,-232.16,0.0003315,2]
[310135860,1704381054623,-500.0,0.0003315,2]
[310135861,1704381054633,-500.0,0.0003315,2]
[310135862,1704381054643,-500.0,0.0003315,2]
[310135863,1704381054653,-500.0,0.0003315,2]
[310135864,1704381054665,-500.0,0.0003315,2]
[310135865,1704381054675,-1520.97,0.0003315,2]
[310135866,1704381054686,-500.0,0.0003315,2]
[310135867,1704381054697,-1426.18,0.0003315,2]
[310135868,1704381054707,-1259.68,0.0003315,2]
[310135869,1704381054717,-505.22,0.0003315,2]
[310135870,1704381054728,-500.0,0.0003315,2]
[310135871,1704381054738,-547.74,0.0003315,2]
[310135872,1704381054749,-523.81,0.0003315,2]
[310135873,1704381054762,-500.0,0.0003315,2]
[310135874,1704381054772,-867.86,0.0003315,2]
[310135875,1704381054782,-603.02,0.0003315,2]
[310135876,1704381054795,-500.0,0.0003315,2]
[310135877,1704381054805,-500.0,0.0003315,2]
[310135878,1704381054815,-500.0,0.0003315,2]
[310135879,1704381054825,-1125.55,0.0003315,2]
[310135880,1704381054838,-500.0,0.0003315,2]
[310135881,1704381054850,-500.0,0.0003315,2]
[310135882,1704381054862,-500.0,0.0003315,2]
[310135883,1704381054872,-500.0,0.0003315,2]
[310135884,1704381054882,-570.27,0.0003315,2]
[310135885,1704381054894,-507.79,0.0003315,2]
[310135886,1704381054904,-500.0,0.0003315,2]
[310135887,1704381054914,-500.0,0.0003315,2]
[310135888,1704381054924,-500.0,0.0003315,2]
[310135889,1704381054935,-500.0,0.0003315,2]
[310135890,1704381054947,-733.59,0.0003315,2]
[310135891,1704381054958,-500.0,0.0003315,2]
[310135892,1704381054968,-500.0,0.0003315,2]
[310135893,1704381054978,-1129.17,0.0003315,2]
[310135894,1704381054988,-500.0,0.0003315,2]
[310135895,1704381054997,-500.0,0.0003315,2]
[310135896,1704381055082,-500.0,0.0003315,2]
[310135897,1704381055093,-500.0,0.0003315,2]
[310135898,1704381055102,-500.0,0.0003315,2]
[310135899,1704381055112,-747.19,0.0003315,2]
[310135900,1704381055121,-500.0,0.0003315,2]
[310135901,1704381055132,-500.0,0.0003315,2]
[310135902,1704381055142,-500.0,0.0003315,2]
[310135903,1704381055152,-500.0,0.0003315,2]
[310135904,1704381055163,-500.0,0.0003315,2]
[310135905,1704381055172,-500.0,0.0003315,2]
[310135906,1704381055195,-500.0,0.0003315,2]
[310135907,1704381055211,-500.0,0.0003315,2]
[310135908,1704381055224,-1630.99,0.0003315,2]
[310135909,1704381055234,-500.0,0.0003315,2]
[310135910,1704381055245,-489.74522922,0.0003315,2]
[310135911,1704381055261,-500.0,0.0003315,2]
[310135912,1704381055271,-500.0,0.0003315,2]
[310135913,1704381055281,-460.17971266,0.0003315,2]
[310135914,1704381055291,-500.0,0.0003315,2]
[310135915,1704381055302,-578.89933897,0.0003315,2]
[310135916,1704381055312,-500.0,0.0003315,2]
[310135917,1704381055322,-500.0,0.0003315,2]
[310135918,1704381055331,-500.0,0.0003315,2]
[310135919,1704381055341,-500.0,0.0003315,2]
[310135920,1704381055351,-517.4,0.0003315,2]
[310135921,1704381055361,-500.0,0.0003315,2]
[310135922,1704381055370,-500.0,0.0003315,2]
[310135923,1704381055381,-982.74,0.0003315,2]
[310135924,1704381055391,-500.0,0.0003315,2]
[310135925,1704381055401,-718.84,0.0003315,2]
[310135926,1704381055411,-500.0,0.0003315,2]
[310135927,1704381055421,-500.0,0.0003315,2]
[310135928,1704381055431,-1335.59,0.0003315,2]
[310135929,1704381055443,-808.92,0.0003315,2]
[310135930,1704381055453,-500.0,0.0003315,2]
[310135931,1704381055463,-500.0,0.0003315,2]
[310135932,1704381055472,-500.0,0.0003315,2]
[310135933,1704381055483,-500.0,0.0003315,2]
[310135934,1704381055493,-500.0,0.0003315,2]
[310135935,1704381055503,-500.0,0.0003315,2]
[310135936,1704381055513,-500.0,0.0003315,2]
[310135937,1704381055523,-500.0,0.0003315,2]
[310135938,1704381055533,-766.36,0.0003315,2]
[310135939,1704381055542,-729.36,0.0003315,2]
[310135940,1704381055552,-659.91,0.0003315,2]
[310135941,1704381055562,-500.0,0.0003315,2]
[310135942,1704381055573,-562.96,0.0003315,2]
[310135943,1704381055582,-1456.31,0.0003315,2]
[310135944,1704381055592,-516.98,0.0003315,2]
[310135945,1704381055602,-500.0,0.0003315,2]
[310135946,1704381055613,-170.8203545,0.0003315,2]
[310135947,1704381055623,-851.05,0.0003315,2]
[310135948,1704381055633,-9664.28,0.0003315,2]
[310135949,1704381055646,-500.0,0.0003315,2]
[310135950,1704381055656,-500.0,0.0003315,2]
[310135951,1704381055666,-500.0,0.0003315,2]
[310135952,1704381055676,-945.06,0.0003315,2]
[310135953,1704381055687,-500.0,0.0003315,2]
[310135954,1704381055699,-288.83156925,0.0003315,2]
[310135955,1704381055712,-500.0,0.0003315,2]
[310135956,1704381055723,-500.0,0.0003315,2]
[310135957,1704381055734,-1397.4,0.0003315,2]
[310135958,1704381055745,-1357.31,0.0003315,2]
[310135959,1704381055755,-500.0,0.0003315,2]
[310135960,1704381055765,-1381.09,0.0003315,2]
[310135961,1704381055775,-762.25,0.0003315,2]
[310135962,1704381055786,-500.0,0.0003315,2]
[310135963,1704381055797,-500.0,0.0003315,2]
[310135964,1704381055807,-500.0,0.0003315,2]
[310135965,1704381055819,-817.61,0.0003315,2]
[310135966,1704381055829,-610.64,0.0003315,2]
[310135967,1704381055839,-772.57,0.0003315,2]
[310135968,1704381055850,-1132.65,0.0003315,2]
[310135969,1704381055861,-500.0,0.0003315,2]
[310135970,1704381055872,-500.0,0.0003315,2]
[310135971,1704381055882,-500.0,0.0003315,2]
[310135972,1704381055892,-912.12,0.0003315,2]
[310135973,1704381055902,-541.35,0.0003315,2]
[310135974,1704381055912,-1407.8,0.0003315,2]
[310135975,1704381055923,-500.0,0.0003315,2]
[310135976,1704381055933,-3837.79,0.0003315,2]
[310135977,1704381055943,-500.0,0.0003315,2]
[310135978,1704381055953,-1171.58,0.0003315,2]
[310135979,1704381055963,-500.0,0.0003315,2]
[310135980,1704381055973,-500.0,0.0003315,2]
[310135981,1704381055983,-500.0,0.0003315,2]
[310135982,1704381055993,-562.13125726,0.0003315,2]
[310135983,1704381056003,-823.32,0.0003315,2]
[310135984,1704381056013,-500.0,0.0003315,2]
[310135985,1704381056023,-1857.97,0.0003315,2]
[310135986,1704381056033,-731.46,0.0003315,2]
[310135987,1704381056043,-6696.46,0.0003315,2]
[310135988,1704381056055,-500.0,0.0003315,2]
[310135989,1704381056065,-500.0,0.0003315,2]
[310135990,1704381056075,-4424.63,0.0003315,2]
[310135991,1704381056085,-500.0,0.0003315,2]
[310135992,1704381056095,-500.0,0.0003315,2]
[310135993,1704381056105,-500.0,0.0003315,2]
[310135994,1704381056115,-2103.22,0.0003315,2]
[310135995,1704381056125,-500.0,0.0003315,2]
[310135996,1704381056136,-500.0,0.0003315,2]
[310135997,1704381056147,-500.0,0.0003315,2]
[310135998,1704381056157,-635.41,0.0003315,2]
[310135999,1704381056169,-947.4,0.0003315,2]
[310136000,1704381056179,-500.0,0.0003315,2]
[310136001,1704381056193,-500.0,0.0003315,2]
[310136002,1704381056204,-702.68,0.0003315,2]
[310136003,1704381056215,-500.0,0.0003315,2]
[310136004,1704381056225,-500.0,0.0003315,2]
[310136005,1704381056235,-500.0,0.0003315,2]
[310136006,1704381056244,-500.0,0.0003315,2]
[310136007,1704381056253,-1420.47,0.0003315,2]
[310136008,1704381056264,-500.0,0.0003315,2]
[310136009,1704381056273,-879.09,0.0003315,2]
[310136010,1704381056283,-1498.4,0.0003315,2]
[310136011,1704381056293,-500.0,0.0003315,2]
[310136012,1704381056303,-500.0,0.0003315,2]
[310136013,1704381056313,-3119.38,0.0003315,2]
[310136014,1704381056322,-237.30852127,0.0003315,2]
[310136015,1704381056333,-559.06591271,0.0003315,2]
[310136016,1704381056342,-751.58,0.0003315,2]
[310136017,1704381056352,-605.5,0.0003315,2]
[310136018,1704381056361,-605.24,0.0003315,2]
[310136019,1704381056371,-505.62,0.0003315,2]
[310136020,1704381056381,-3531.69,0.0003315,2]
[310136021,1704381056390,-500.0,0.0003315,2]
[310136022,1704381056400,-500.0,0.0003315,2]
[310136023,1704381056410,-27935.1,0.0003315,2]
[310136024,1704381056420,-563.83442438,0.0003315,2]
[310136025,1704381056430,-230.01544505,0.0003315,2]
[310136026,1704381056441,-9652.15,0.0003315,2]
[310136027,1704381056450,-500.0,0.0003315,2]
[310136028,1704381056460,-500.0,0.0003315,2]
[310136029,1704381056470,-500.0,0.0003315,2]
[310136030,1704381056479,-500.0,0.0003315,2]
[310136031,1704381056488,-2298.36,0.0003315,2]
[310136032,1704381056499,-500.0,0.0003315,2]
[310136033,1704381056515,-500.0,0.0003315,2]
[310136034,1704381056525,-500.0,0.0003315,2]
[310136035,1704381056536,-872.44,0.0003315,2]
[310136036,1704381056546,-522.32,0.0003315,2]
[310136037,1704381056557,-1107.28,0.0003315,2]
[310136038,1704381056567,-6169.8,0.0003315,2]
[310136039,1704381056578,-2721.95,0.0003315,2]
[310136040,1704381056589,-500.0,0.0003315,2]
[310136041,1704381056599,-500.0,0.0003315,2]
[310136042,1704381056609,-500.0,0.0003315,2]
[310136043,1704381056618,-20957.42,0.0003315,2]
[310136044,1704381056628,-790.24,0.0003315,2]
[310136045,1704381056639,-500.0,0.0003315,2]
[310136046,1704381056651,-778.65,0.0003315,2]
[310136047,1704381056662,-500.0,0.0003315,2]
[310136048,1704381056673,-675.71,0.0003315,2]
[310136049,1704381056684,-5303.31,0.0003315,2]
[310136050,1704381056698,-12349.18,0.0003315,2]
[310136051,1704381056710,-1264.17,0.0003315,2]
[310136052,1704381056722,-500.0,0.0003315,2]
[310136053,1704381056734,-500.0,0.0003315,2]
[310136054,1704381056744,-863.13,0.0003315,2]
[310136055,1704381056758,-3049.96,0.0003315,2]
[310136056,1704381056768,-683.35,0.0003315,2]
[310136057,1704381056782,-610.44,0.0003315,2]
[310136058,1704381056795,-512.0,0.0003315,2]
[310136059,1704381056805,-875.3,0.0003315,2]
[310136060,1704381056817,-5903.95,0.0003315,2]
[310136061,1704381056830,-1044.8,0.0003315,2]
[310136062,1704381056841,-932.04,0.0003315,2]
[310136063,1704381056852,-677.34,0.0003315,2]
[310136064,1704381056863,-500.0,0.0003315,2]
[310136065,1704381056873,-500.0,0.0003315,2]
[310136066,1704381056884,-500.0,0.0003315,2]
[310136067,1704381056895,-500.0,0.0003315,2]
[310136068,1704381056905,-500.0,0.0003315,2]
[310136069,1704381056916,-500.0,0.0003315,2]
[310136070,1704381056926,-500.0,0.0003315,2]
[310136071,1704381056936,-500.0,0.0003315,2]
[310136072,1704381056948,-629.21233323,0.0003315,2]
[310136073,1704381056959,-961.27,0.0003315,2]
[310136074,1704381056970,-500.0,0.0003315,2]
[310136075,1704381056981,-501.98,0.0003315,2]
[310136076,1704381056991,-953.83,0.0003315,2]
[310136077,1704381057002,-500.0,0.0003315,2]
[310136078,1704381057014,-4948.29,0.0003315,2]
[310136079,1704381057025,-2193.95,0.0003315,2]
[310136080,1704381057035,-500.0,0.0003315,2]
[310136081,1704381057047,-500.0,0.0003315,2]
[310136082,1704381057057,-1684.53,0.0003315,2]
[310136083,1704381057069,-1094.17,0.0003315,2]
[310136084,1704381057080,-500.0,0.0003315,2]
[310136085,1704381057091,-11618.59,0.0003315,2]
[310136086,1704381057102,-622.84743332,0.0003315,2]
[310136087,1704381057113,-500.0,0.0003315,2]
[310136088,1704381057124,-500.0,0.0003315,2]
[310136089,1704381057134,-500.0,0.0003315,2]
[310136090,1704381057147,-688.72,0.0003315,2]
[310136091,1704381057158,-1645.6,0.0003315,2]
[310136092,1704381057169,-595.44,0.0003315,2]
[310136093,1704381057181,-507.857468,0.0003315,2]
[310136094,1704381057194,-2835.91,0.0003315,2]
[310136095,1704381057207,-500.0,0.0003315,2]
[310136096,1704381057218,-1135.38,0.0003315,2]
[310136097,1704381057229,-500.0,0.0003315,2]
[310136098,1704381057239,-965.46,0.0003315,2]
[310136099,1704381057250,-500.0,0.0003315,2]
[310136100,1704381057260,-1387.45,0.0003315,2]
[310136101,1704381057271,-708.02,0.0003315,2]
[310136102,1704381057281,-500.0,0.0003315,2]
[310136103,1704381057291,-500.0,0.0003315,2]
[310136104,1704381057302,-500.0,0.0003315,2]
[310136105,1704381057312,-914.93,0.0003315,2]
[310136106,1704381057323,-562.31,0.0003315,2]
[310136107,1704381057333,-500.0,0.0003315,2]
[310136108,1704381057343,-1658.11,0.0003315,2]
[310136109,1704381057353,-500.0,0.0003315,2]
[310136110,1704381057364,-6805.44,0.0003315,2]
[310136111,1704381057374,-500.0,0.0003315,2]
[310136112,1704381057384,-504.03,0.0003315,2]
[310136113,1704381057395,-4232.55,0.0003315,2]
[310136114,1704381057405,-660.31,0.0003315,2]
[310136115,1704381057415,-3260.78,0.0003315,2]
[310136116,1704381057425,-500.0,0.0003315,2]
[310136117,1704381057435,-500.0,0.0003315,2]
[310136118,1704381057446,-622.39,0.0003315,2]
[310136119,1704381057456,-1386.3,0.0003315,2]
[310136120,1704381057466,-647.79,0.0003315,2]
[310136121,1704381057476,-664.7,0.0003315,2]
[310136122,1704381057486,-419.45744519,0.0003315,2]
[310136123,1704381057496,-7794.64,0.0003315,2]
[310136124,1704381057506,-500.0,0.0003315,2]
[310136125,1704381057516,-500.0,0.0003315,2]
[310136126,1704381057526,-500.0,0.0003315,2]
[310136127,1704381057536,-2148.65,0.0003315,2]
[310136128,1704381057546,-645.03,0.0003315,2]
[310136129,1704381057557,-907.03,0.0003315,2]
[310136130,1704381057567,-500.0,0.0003315,2]
[310136131,1704381057577,-504.42,0.0003315,2]
[310136132,1704381057587,-1742.55,0.0003315,2]
[310136133,1704381057597,-500.0,0.0003315,2]
[310136134,1704381057607,-500.0,0.0003315,2]
[310136135,1704381057618,-500.0,0.0003315,2]
[310136136,1704381057629,-1693.92,0.0003315,2]
[310136137,1704381057639,-500.0,0.0003315,2]
[310136138,1704381057649,-1032.15,0.0003315,2]
[310136139,1704381057659,-500.0,0.0003315,2]